bitfinex/quotes_SOLUSD_20250601
["timestamp","ask_amount","ask_price","bid_price","bid_amount"]
[1748748455059,6.4998375,153.85,153.8,22.36875193]
[1748748455060,28.86858943,153.85,153.8,22.36875193]
[1748748457321,6.4998375,153.85,153.81,22.36875193]
[1748748457859,28.86858943,153.85,153.81,22.36875193]
[1748748458027,28.86858943,153.85,153.8,22.36875193]
[1748748458641,21.37241366,153.85,153.8,14.87257616]
[1748748459650,6.4998375,153.85,153.8,14.87257616]
[1748748460827,6.49899265,153.87,153.8,14.87257616]
[1748748461028,6.49899265,153.87,153.81,14.87257616]
[1748748461257,6.49899265,153.87,153.8,14.87257616]
[1748748462324,6.49899265,153.87,153.81,14.87257616]
[1748748463356,14.87257616,153.85,153.81,14.87257616]
[1748748463532,14.87257616,153.82,153.76,91.1995]
[1748748463858,14.87257616,153.82,153.78,11.0]
[1748748464153,14.87257616,153.79,153.73,11.0]
[1748748464453,14.87257616,153.74,153.73,11.0]
[1748748465048,14.87257616,153.75,153.73,11.0]
[1748748465554,14.87257616,153.74,153.69,0.58404669]
[1748748465742,14.87257616,153.72,153.69,0.58404669]
[1748748465944,14.87257616,153.71,153.69,0.58404669]
[1748748466245,21.3786879,153.71,153.69,0.58404669]
[1748748466625,28.85502823,153.71,153.69,0.58404669]
[1748748468854,22.34891649,153.7,153.69,0.58404669]
[1748748469957,28.85502823,153.71,153.69,0.58404669]
[1748748470338,28.8543693,153.72,153.69,0.58404669]
[1748748471025,42.2598011,153.76,153.69,7.09043852]
[1748748471026,26.0,153.76,153.69,7.09043852]
[1748748471230,22.34891649,153.75,153.69,7.09043852]
[1748748471425,22.34891649,153.75,153.7,22.34891649]
[1748748472360,22.34891649,153.75,153.7,28.85504951]
[1748748472564,28.85294184,153.76,153.71,22.34891649]
[1748748473943,22.34891649,153.75,153.7,22.34891649]
[1748748474554,22.34891649,153.75,153.7,28.85503192]
[1748748475783,22.34891649,153.74,153.7,22.34891649]
[1748748476076,22.34891649,153.74,153.69,22.93296318]
[1748748476375,22.34891649,153.72,153.69,0.58404669]
[1748748478472,28.85438629,153.72,153.69,0.58404669]
[1748748478875,22.34891649,153.7,153.69,0.58404669]
[1748748479369,22.34891649,153.71,153.69,0.58404669]
[1748748479581,28.85438629,153.72,153.69,0.58404669]
[1748748480679,22.34891649,153.71,153.69,0.58404669]
[1748748482473,22.34891649,153.72,153.69,0.58404669]
[1748748482780,28.85392031,153.73,153.69,0.58404669]
[1748748483153,22.34891649,153.72,153.69,0.58404669]
[1748748485051,6.50500382,153.73,153.69,0.58404669]
[1748748485273,6.50500382,153.73,153.67,28.8562585]
[1748748485274,67.14072692,153.7,153.61,22.34891649]
[1748748485575,40.9,153.69,153.65,22.34891649]
[1748748485748,63.24891649,153.71,153.65,22.34891649]
[1748748485952,22.34891649,153.7,153.65,22.34891649]
[1748748487063,28.85515952,153.7,153.65,22.34891649]
[1748748487263,28.85515952,153.7,153.64,28.85734912]
[1748748488576,22.34891649,153.66,153.61,6.50999283]
[1748748488775,14.90837819,153.66,153.61,14.90837819]
[1748748488988,14.90837819,153.65,153.6,32.41866854]
[1748748490661,6.50848878,153.65,153.6,25.90837819]
[1748748490876,14.90837819,153.64,153.6,25.90837819]
[1748748491062,14.90837819,153.64,153.6,11.0]
[1748748492573,14.90837819,153.64,153.6,17.51040557]
[1748748493182,13.24177819,153.64,153.61,1.6313]
[1748748493368,11.57517819,153.64,153.61,1.6313]
[1748748493571,8.24197819,153.64,153.61,1.6313]
[1748748493786,6.57517819,153.64,153.61,6.3374]
[1748748493985,14.90837819,153.64,153.61,6.3374]
[1748748495289,14.90837819,153.65,153.61,3.2757]
[1748748495588,14.90837819,153.66,153.61,18.18407819]
[1748748496200,21.41630128,153.66,153.61,18.18407819]
[1748748496600,21.41630128,153.66,153.61,24.69404663]
[1748748497175,14.90837819,153.65,153.61,3.2757]
[1748748497379,14.90837819,153.65,153.61,9.78565694]
[1748748497781,14.90837819,153.65,153.61,6.50995694]
[1748748498467,14.90837819,153.65,153.6,17.51032425]
[1748748498693,14.90837819,153.65,153.6,32.41870244]
[1748748498870,6.50792309,153.66,153.62,6.3374]
[1748748498871,14.90837819,153.64,153.62,6.3374]
[1748748499081,21.41630128,153.66,153.62,6.3374]
[1748748499793,14.90837819,153.65,153.62,6.3374]
[1748748500667,6.50792309,153.66,153.62,6.3374]
[1748748500890,14.90837819,153.65,153.62,6.3374]
[1748748501389,14.90837819,153.66,153.62,6.3374]
[1748748501592,3.22571528,153.84,153.65,40.90837819]
[1748748501887,14.90837819,153.78,153.72,14.90837819]
[1748748502087,14.90837819,153.78,153.7,26.0]
[1748748502088,14.90837819,153.76,153.73,11.0]
[1748748502261,14.90837819,153.76,153.72,11.0]
[1748748502680,22.33471734,153.76,153.72,11.0]
[1748748502865,22.33471734,153.76,153.7,28.84088964]
[1748748503060,22.33471734,153.75,153.71,11.0]
[1748748503768,22.33471734,153.76,153.71,6.50550246]
[1748748503974,22.33471734,153.76,153.73,6.319]
[1748748505701,22.33471734,153.77,153.73,12.82367646]
[1748748506393,22.33471734,153.78,153.73,12.82367646]
[1748748506978,22.33471734,153.77,153.73,12.82367646]
[1748748507507,22.33471734,153.75,153.73,6.319]
[1748748508093,22.33471734,153.76,153.73,6.319]
[1748748508397,22.33471734,153.76,153.73,12.82386636]
[1748748508599,22.33471734,153.77,153.73,12.82386636]
[1748748509797,22.33471734,153.78,153.73,35.1585837]
[1748748511502,197.33471734,153.81,153.76,22.33471734]
[1748748511706,48.33471734,153.81,153.76,22.33471734]
[1748748512084,22.33471734,153.81,153.76,22.33471734]
[1748748512292,26.0,153.8,153.76,22.33471734]
[1748748512614,6.50036778,153.84,153.77,28.83793643]
[1748748512909,22.33471734,153.82,153.77,28.83793643]
[1748748513119,22.33471734,153.82,153.78,11.0]
[1748748513708,22.33471734,153.82,153.78,17.50271444]
[1748748515083,22.33471734,153.82,153.78,39.83743178]
[1748748515287,22.33471734,153.83,153.78,39.83743178]
[1748748520495,26.0,153.84,153.78,39.83743178]
[1748748520698,22.33471734,153.84,153.79,22.33471734]
[1748748521796,22.33471734,153.84,153.79,28.83689944]
[1748748522091,28.83501383,153.84,153.79,28.83689944]
[1748748522698,22.33471734,153.84,153.79,28.83689944]
[1748748522902,28.83507515,153.84,153.79,22.33471734]
[1748748523102,22.33471734,153.8,153.76,11.0]
[1748748523811,22.33471734,153.8,153.76,33.33471734]
[1748748523996,22.33471734,153.81,153.76,39.83831725]
[1748748524589,47.42364072,153.82,153.76,17.50359991]
[1748748524814,47.42364072,153.82,153.76,25.88083983]
[1748748524815,14.88083983,153.81,153.76,25.88083983]
[1748748525120,14.88083983,153.81,153.76,32.3843389]
[1748748525799,62.30448055,153.82,153.77,14.88083983]
[1748748526205,14.88083983,153.81,153.77,14.88083983]
[1748748527297,21.38241553,153.81,153.77,14.88083983]
[1748748529426,14.88083983,153.81,153.77,21.38402268]
[1748748530221,14.88083983,153.81,153.77,14.88083983]
[1748748531516,21.3824832,153.81,153.76,25.88083983]
[1748748531724,14.88083983,153.8,153.76,25.88083983]
[1748748532123,14.88083983,153.8,153.76,11.0]
[1748748533626,21.38317691,153.8,153.76,11.0]
[1748748537038,6.50233708,153.8,153.76,11.0]
[1748748537202,21.52452925,153.81,153.76,25.88083983]
[1748748539221,14.88083983,153.8,153.76,11.0]
[1748748540009,21.52452925,153.81,153.76,25.88083983]
[1748748542338,14.88083983,153.8,153.76,11.0]
[1748748543734,21.38313759,153.8,153.76,11.0]
[1748748544509,21.38313759,153.8,153.76,25.88083983]
[1748748544833,6.64376423,153.81,153.76,25.88083983]
[1748748545015,21.52460406,153.81,153.76,25.88083983]
[1748748545219,21.38244249,153.81,153.76,32.38445288]
[1748748545611,66.54,153.83,153.79,14.88083983]
[1748748545612,6.50098302,153.83,153.79,14.88083983]
[1748748545815,14.88083983,153.84,153.79,14.88083983]
[1748748546944,6.4998375,153.85,153.8,14.88083983]
[1748748547445,21.38067733,153.85,153.8,14.88083983]
[1748748548541,14.88083983,153.86,153.81,14.88083983]
[1748748549528,14.88083983,153.86,153.81,21.38230705]
[1748748549719,21.38032886,153.86,153.81,14.88083983]
[1748748550744,14.88083983,153.85,153.81,14.88083983]
[1748748551039,6.49948903,153.86,153.76,131.73969104]
[1748748551040,14.88083983,153.84,153.8,14.88083983]
[1748748551639,6.50068257,153.83,153.8,14.88083983]
[1748748553331,6.50026001,153.84,153.8,14.88083983]
[1748748553557,34.89728299,153.87,153.81,14.88083983]
[1748748553558,40.44,153.86,153.81,14.88083983]
[1748748553725,6.49926366,153.87,153.82,14.88083983]
[1748748553936,14.88083983,153.86,153.81,14.88083983]
[1748748554614,14.88083983,153.85,153.81,14.88083983]
[1748748555647,23.00540899,153.85,153.81,14.88083983]
[1748748556142,8.12456916,153.85,153.81,14.88083983]
[1748748556362,23.00540899,153.85,153.81,14.88083983]
[1748748556930,23.00540899,153.85,153.77,6.50321909]
[1748748557142,23.00540899,153.85,153.81,14.88083983]
[1748748557617,8.12456916,153.85,153.81,14.88083983]
[1748748557822,23.00540899,153.85,153.81,14.88083983]
[1748748560748,8.12456916,153.85,153.81,14.88083983]
[1748748561246,1.6244,153.85,153.81,14.88083983]
[1748748561452,1.6244,153.85,153.82,14.88083983]
[1748748562548,8.12423874,153.85,153.81,25.68083983]
[1748748565062,8.12423874,153.85,153.81,10.8]
[1748748565229,23.00507857,153.85,153.81,25.68083983]
[1748748566245,23.00507857,153.85,153.81,10.8]
[1748748566842,23.00507857,153.85,153.81,25.68083983]
[1748748569855,21.38067857,153.85,153.81,25.68083983]
[1748748571533,14.88083983,153.83,153.81,10.8]
[1748748571853,14.88083983,153.83,153.75,115.6]
[1748748571854,40.88083983,153.82,153.75,10.68]
[1748748572155,14.88083983,153.78,153.75,10.68]
[1748748572660,14.88083983,153.77,153.75,10.68]
[1748748572954,14.88083983,153.78,153.75,10.68]
[1748748573854,6.50321909,153.77,153.75,10.68]
[1748748575357,14.88083983,153.79,153.75,10.68]
[1748748575939,40.88083983,153.8,153.75,25.56083983]
[1748748576261,40.88083983,153.8,153.76,14.88083983]
[1748748577248,47.38289675,153.8,153.76,14.88083983]
[1748748577636,26.0,153.8,153.76,14.88083983]
[1748748579467,32.50195791,153.8,153.76,14.88083983]
[1748748580348,32.50195791,153.8,153.75,14.88083983]
[1748748581162,32.50195791,153.8,153.75,21.3848528]
[1748748581664,47.38279774,153.8,153.76,14.88083983]
[1748748581882,40.88083983,153.8,153.76,14.88083983]
[1748748582165,26.0,153.8,153.77,14.88083983]
[1748748582737,6.50167275,153.81,153.77,14.88083983]
[1748748583362,6.50120071,153.82,153.78,14.88083983]
[1748748585762,6.49941505,153.86,153.81,14.88083983]
[1748748586066,47.38025488,153.86,153.81,14.88083983]
[1748748587064,14.88083983,153.84,153.79,14.88083983]
[1748748587465,32.49941505,153.86,153.81,14.88083983]
[1748748587651,14.88083983,153.85,153.81,14.88083983]
[1748748587860,14.88083983,153.85,153.8,14.88083983]
[1748748588060,6.50026001,153.84,153.8,14.88083983]
[1748748588653,21.38078128,153.85,153.8,14.88083983]
[1748748591358,14.88083983,153.84,153.8,14.88083983]
[1748748591772,14.88083983,153.84,153.77,17.18310779]
[1748748592066,14.88083983,153.83,153.78,14.88083983]
[1748748592266,14.88083983,153.83,153.75,6.50406504]
[1748748592462,14.88083983,153.83,153.78,14.88083983]
[1748748593178,21.38187196,153.83,153.78,14.88083983]
[1748748595071,14.88083983,153.83,153.78,14.88083983]
[1748748595260,14.88083983,153.84,153.79,14.88083983]
[1748748596557,21.3814986,153.84,153.77,6.50321909]
[1748748596901,6.50065877,153.84,153.8,14.88083983]
[1748748597960,14.88083983,153.81,153.76,32.06434933]
[1748748598277,14.88083983,153.8,153.76,10.68]
[1748748599089,21.38296279,153.8,153.76,10.68]
[1748748600473,6.50068257,153.83,153.76,25.56083983]
[1748748600657,14.88083983,153.81,153.76,25.56083983]
[1748748600860,14.88083983,153.78,153.7,99.7605]
[1748748601058,14.88083983,153.77,153.73,14.88083983]
[1748748602168,21.38414267,153.77,153.73,14.88083983]
[1748748602985,6.50195058,153.8,153.76,14.88083983]
[1748748603164,21.38279041,153.8,153.75,14.88083983]
[1748748603363,14.88083983,153.79,153.72,6.50533437]
[1748748603689,14.88083983,153.79,153.74,14.88083983]
[1748748604056,21.38353302,153.79,153.72,6.50533437]
[1748748604262,21.38353302,153.79,153.74,14.88083983]
[1748748606064,21.38236768,153.81,153.76,14.88083983]
[1748748606289,14.88083983,153.8,153.75,14.88083983]
[1748748606972,6.50152785,153.81,153.76,14.88083983]
[1748748606973,21.38236768,153.81,153.76,14.88083983]
[1748748607171,14.88083983,153.81,153.76,21.38421395]
[1748748607365,21.38204741,153.82,153.77,14.88083983]
[1748748608687,6.50120758,153.82,153.77,21.38396933]
[1748748608985,149.0,153.85,153.81,14.88083983]
[1748748608986,6.4998375,153.85,153.81,14.88083983]
[1748748609196,6.4998375,153.85,153.82,14.88083983]
[1748748609874,34.08089188,153.86,153.82,14.88083983]
[1748748610492,8.08083479,153.86,153.82,14.88083983]
[1748748611085,22.96167462,153.86,153.81,14.88083983]
[1748748611284,14.88083983,153.84,153.8,14.88083983]
[1748748611776,14.88083983,153.81,153.76,14.88083983]
[1748748611978,14.88083983,153.81,153.76,25.48083983]
[1748748612182,14.88083983,153.82,153.77,14.88083983]
[1748748612865,21.38209922,153.82,153.77,14.88083983]
[1748748614406,21.3816458,153.83,153.78,14.88083983]
[1748748615091,21.381217,153.84,153.79,14.88083983]
[1748748616500,14.88083983,153.83,153.78,14.88083983]
[1748748616703,14.88083983,153.81,153.76,25.48083983]
[1748748617087,6.50195058,153.8,153.76,25.48083983]
[1748748620084,21.38250911,153.81,153.76,31.98447884]
[1748748620285,21.38208564,153.82,153.77,14.88083983]
[1748748621020,21.38165918,153.83,153.78,14.88083983]
[1748748621617,14.88083983,153.82,153.77,21.38392509]
[1748748622515,21.38201362,153.82,153.76,17.10352746]
[1748748622705,16.51263983,153.81,153.76,31.98436729]
[1748748623094,16.51263983,153.81,153.76,25.48083983]
[1748748623512,1.6318,153.81,153.77,14.88083983]
[1748748624927,1.6318,153.81,153.78,21.38363603]
[1748748625596,1.6318,153.81,153.79,14.88083983]
[1748748625793,6.50075589,153.83,153.79,14.88083983]
[1748748626102,26.0,153.83,153.8,14.88083983]
[1748748626297,26.0,153.83,153.78,6.5027962]
[1748748626298,1.616,153.84,153.81,14.88083983]
[1748748627397,1.616,153.84,153.8,14.88083983]
[1748748627611,16.49683983,153.84,153.8,14.88083983]
[1748748627920,14.88083983,153.81,153.76,141.08083983]
[1748748628119,14.88083983,153.81,153.76,51.48083983]
[1748748628618,14.88083983,153.82,153.77,14.88083983]
[1748748628923,6.50152785,153.81,153.77,14.88083983]
[1748748631321,6.50110518,153.82,153.78,14.88083983]
[1748748631517,1.616,153.84,153.81,14.88083983]
[1748748631706,8.11628873,153.84,153.77,6.50306286]
[1748748631913,22.99712856,153.84,153.8,14.88083983]
[1748748632108,8.11628873,153.84,153.8,14.88083983]
[1748748633012,6.50028873,153.84,153.8,14.88083983]
[1748748634130,10.18381168,153.86,153.82,14.88083983]
[1748748634521,10.18381168,153.86,153.78,6.78711934]
[1748748634522,25.06465151,153.86,153.81,14.88083983]
[1748748634723,14.88083983,153.84,153.78,6.5027962]
[1748748634916,21.38146098,153.84,153.79,14.88083983]
[1748748636527,6.50062115,153.84,153.79,14.88083983]
[1748748636720,6.50062115,153.84,153.8,14.88083983]
[1748748637740,14.88083983,153.82,153.76,29.24964886]
[1748748637923,14.88083983,153.8,153.76,10.6]
[1748748638228,6.50062115,153.84,153.78,14.88083983]
[1748748638605,14.88083983,153.83,153.78,14.88083983]
[1748748638918,6.50062115,153.84,153.76,17.10363509]
[1748748639225,6.50062115,153.84,153.76,31.98447492]
[1748748639226,14.88083983,153.81,153.76,31.98447492]
[1748748639723,6.49941505,153.86,153.76,31.98447492]
[1748748639931,14.88083983,153.82,153.77,14.88083983]
[1748748640806,14.88083983,153.82,153.77,21.38380422]
[1748748641006,22.97143824,153.83,153.77,21.38380422]
[1748748641946,22.97143824,153.83,153.78,14.88083983]
[1748748642437,22.97143824,153.83,153.78,21.38361792]
[1748748643533,22.97143824,153.83,153.78,14.88083983]
[1748748645430,8.09059841,153.83,153.78,21.38359671]
[1748748645627,22.97143824,153.83,153.78,21.38359671]
[1748748646811,22.97143824,153.83,153.78,14.88083983]
[1748748647013,22.97143824,153.83,153.78,21.38360433]
[1748748648146,22.97143824,153.83,153.77,6.50321909]
[1748748648147,8.09059841,153.83,153.77,6.50321909]
[1748748648432,22.97143824,153.83,153.78,14.88083983]
[1748748649208,3.68163441,153.84,153.82,14.88083983]
[1748748649406,3.68163441,153.84,153.83,14.88083983]
[1748748651125,6.49954061,153.86,153.83,14.88083983]
[1748748652231,6.49954061,153.86,153.82,14.88083983]
[1748748652414,149.0,153.88,153.85,14.88083983]
[1748748652622,6.49827882,153.89,153.87,14.88083983]
[1748748653120,6.49827882,153.89,153.87,14.38083983]
[1748748653548,32.49787077,153.9,153.87,14.38083983]
[1748748654530,26.0,153.9,153.88,14.88083983]
[1748748655052,3.68573449,153.89,153.88,14.88083983]
[1748748657154,47.37788251,153.92,153.87,14.88083983]
[1748748657355,14.88083983,153.9,153.86,10.6]
[1748748657941,14.88083983,153.91,153.86,25.48083983]
[1748748658439,6.49772579,153.9,153.86,25.48083983]
[1748748658755,6.49744854,153.91,153.86,25.48083983]
[1748748658919,21.37828837,153.91,153.86,25.48083983]
[1748748659553,14.88083983,153.9,153.86,25.48083983]
[1748748659747,14.88083983,153.9,153.86,10.6]
[1748748660726,21.37898785,153.89,153.86,10.6]
[1748748661127,21.37898785,153.89,153.84,14.88083983]
[1748748661344,6.49814802,153.89,153.85,14.88083983]
[1748748662920,14.88083983,153.9,153.85,21.38063502]
[1748748663246,21.37814344,153.91,153.86,14.88083983]
[1748748663425,14.88083983,153.9,153.86,14.88083983]
[1748748663824,14.88083983,153.9,153.85,21.38063502]
[1748748664230,21.37872921,153.9,153.85,14.88083983]
[1748748664633,21.37872921,153.9,153.85,21.38060636]
[1748748666657,21.37872921,153.9,153.85,14.88083983]
[1748748667154,6.49788938,153.9,153.85,14.88083983]
[1748748667459,21.37872921,153.9,153.85,14.88083983]
[1748748668149,6.49730361,153.91,153.85,21.3806386]
[1748748668353,14.88083983,153.9,153.85,21.3806386]
[1748748669257,21.37857597,153.9,153.85,21.3806386]
[1748748669454,6.49743665,153.91,153.85,21.3806386]
[1748748669653,32.49693247,153.92,153.86,14.88083983]
[1748748669962,14.88083983,153.91,153.86,14.88083983]
[1748748670447,6.49693247,153.92,153.85,21.3806386]
[1748748670767,14.88083983,153.9,153.85,21.3806386]
[1748748670958,14.88083983,153.89,153.84,17.10024222]
[1748748671168,14.88083983,153.88,153.84,10.6]
[1748748672155,14.88083983,153.88,153.84,17.10024798]
[1748748672452,14.88083983,153.87,153.84,10.6]
[1748748672662,14.88083983,153.87,153.82,14.88083983]
[1748748672957,26.0,153.91,153.82,10.6]
[1748748672958,14.88083983,153.85,153.82,10.6]
[1748748673329,1.5896,153.84,153.82,17.10108207]
[1748748673750,8.2391,153.84,153.82,17.10108207]
[1748748673968,8.2391,153.84,153.82,31.9819219]
[1748748675969,1.5896,153.84,153.83,14.88083983]
[1748748676143,6.5573,153.88,153.83,14.88083983]
[1748748676340,8.1797,153.88,153.84,14.88083983]
[1748748677134,8.1797,153.88,153.84,6.50016618]
[1748748677373,8.1797,153.88,153.84,21.38100601]
[1748748681652,8.1797,153.88,153.85,21.38062525]
[1748748683440,8.1797,153.88,153.85,14.88083983]
[1748748684564,1.6224,153.88,153.85,14.88083983]
[1748748687473,16.50323983,153.88,153.84,25.48083983]
[1748748687774,1.6224,153.88,153.84,25.48083983]
[1748748688076,1.6224,153.88,153.84,31.98096665]
[1748748690970,1.6224,153.88,153.85,14.88083983]
[1748748692557,1.6224,153.88,153.86,14.88083983]
[1748748692756,1.6224,153.88,153.87,14.88083983]
[1748748693956,14.88083983,153.91,153.87,14.88083983]
[1748748694150,6.49698673,153.92,153.87,14.88083983]
[1748748694355,14.88083983,153.91,153.87,14.88083983]
[1748748694565,14.88083983,153.91,153.86,21.3801373]
[1748748696668,21.3781502,153.91,153.86,21.3801373]
[1748748696981,27.6373502,153.91,153.86,21.3801373]
[1748748697167,1.5846,153.9,153.86,21.3801373]
[1748748697367,16.46543983,153.9,153.86,21.3801373]
[1748748697879,16.46543983,153.9,153.86,14.88083983]
[1748748699280,22.96327418,153.9,153.85,14.88083983]
[1748748699487,22.96327418,153.9,153.84,25.48083983]
[1748748699488,14.88083983,153.88,153.84,25.48083983]
[1748748699697,14.88083983,153.88,153.83,25.46083983]
[1748748699885,21.37964724,153.88,153.83,25.46083983]
[1748748700265,21.37964724,153.88,153.83,31.96138139]
[1748748700484,21.37905401,153.89,153.84,14.88083983]
[1748748702278,6.49821418,153.89,153.85,14.88083983]
[1748748702683,22.96332756,153.9,153.85,14.88083983]
[1748748703379,8.08248773,153.9,153.83,17.08053356]
[1748748703564,14.88083983,153.89,153.84,14.88083983]
[1748748704297,21.37916888,153.89,153.84,14.88083983]
[1748748704595,1.5846,153.9,153.85,14.88083983]
[1748748704770,1.5846,153.9,153.86,14.88083983]
[1748748705287,1.5846,153.9,153.87,14.88083983]
[1748748705688,1.5846,153.9,153.88,14.88083983]
[1748748706096,1.5846,153.9,153.89,14.88083983]
[1748748706872,1.5846,153.9,153.88,14.88083983]
[1748748710793,8.08242765,153.9,153.87,14.88083983]
[1748748710994,8.08242765,153.9,153.86,14.88083983]
[1748748713214,22.96326748,153.9,153.85,14.88083983]
[1748748714796,8.08242765,153.9,153.86,14.88083983]
[1748748716021,22.96326748,153.9,153.85,14.88083983]
[1748748717101,22.96326748,153.9,153.86,14.88083983]
[1748748717304,22.96326748,153.9,153.83,100.18]
[1748748717493,22.96326748,153.9,153.85,14.88083983]
[1748748717693,14.88083983,153.89,153.84,14.88083983]
[1748748717915,14.88083983,153.88,153.84,10.56]
[1748748718117,14.88083983,153.87,153.84,10.56]
[1748748718308,14.88083983,153.86,153.84,10.56]
[1748748719295,5.9998375,153.85,153.84,10.56]
[1748748720111,6.49955442,153.86,153.84,10.56]
[1748748720496,6.2845,153.89,153.84,25.44083983]
[1748748720497,6.49857031,153.88,153.84,25.44083983]
[1748748722005,21.37941014,153.88,153.84,10.56]
[1748748724924,12.78280646,153.89,153.85,14.88083983]
[1748748725408,6.49830646,153.89,153.86,14.88083983]
[1748748726923,6.49830646,153.89,153.85,14.88083983]
[1748748727626,6.49830646,153.89,153.84,10.56]
[1748748727627,21.37914629,153.89,153.84,25.44083983]
[1748748728128,14.88083983,153.88,153.84,25.44083983]
[1748748728505,21.37914629,153.89,153.84,25.44083983]
[1748748728707,21.37914629,153.89,153.85,14.88083983]
[1748748731622,21.37914629,153.89,153.84,25.44083983]
[1748748734835,6.49830646,153.89,153.85,14.88083983]
[1748748735837,1.5846,153.9,153.85,21.38058359]
[1748748736049,1.5846,153.9,153.87,14.88083983]
[1748748738134,1.5846,153.9,153.88,14.88083983]
[1748748738431,6.49703661,153.92,153.88,14.88083983]
[1748748740556,27.91034149,153.93,153.88,14.88083983]
[1748748740858,6.49660166,153.93,153.89,14.88083983]
[1748748742733,21.37744149,153.93,153.89,14.88083983]
[1748748743325,14.88083983,153.93,153.89,21.37897386]
[1748748743950,8.09979308,153.94,153.89,21.37897386]
[1748748744126,1.6037,153.94,153.91,14.88083983]
[1748748745227,6.3307,153.96,153.92,14.88083983]
[1748748747427,27.70679976,153.96,153.91,21.37808566]
[1748748747635,27.70679976,153.96,153.91,14.88083983]
[1748748748137,27.70679976,153.96,153.9,14.88083983]
[1748748748138,14.88083983,153.95,153.9,14.88083983]
[1748748748439,14.88083983,153.95,153.89,10.56]
[1748748748633,14.88083983,153.94,153.89,25.44083983]
[1748748749540,14.88083983,153.94,153.9,14.88083983]
[1748748750040,21.37678398,153.95,153.9,14.88083983]
[1748748750537,21.37678398,153.95,153.91,14.88083983]
[1748748750743,6.49594415,153.95,153.91,14.88083983]
[1748748751048,27.70687682,153.96,153.91,14.88083983]
[1748748751227,14.88083983,153.95,153.91,14.88083983]
[1748748752548,12.82603699,153.96,153.92,14.88083983]
[1748748752728,21.21153983,153.96,153.92,14.88083983]
[1748748753125,27.70680489,153.96,153.92,14.88083983]
[1748748753346,27.70680489,153.96,153.91,14.88083983]
[1748748753647,14.88083983,153.95,153.91,14.88083983]
[1748748754037,14.88083983,153.95,153.9,14.88083983]
[1748748754248,14.88083983,153.95,153.89,17.05802716]
[1748748754441,14.88083983,153.92,153.89,10.56]
[1748748754754,21.3779035,153.92,153.89,10.56]
[1748748758442,14.88083983,153.91,153.89,10.56]
[1748748758645,14.88083983,153.9,153.85,25.44083983]
[1748748758954,14.88083983,153.88,153.85,10.56]
[1748748759144,14.88083983,153.87,153.85,10.56]
[1748748759551,21.37966997,153.88,153.85,10.56]
[1748748761260,14.88083983,153.88,153.85,10.56]
[1748748762634,14.5384642,153.9,153.85,25.44083983]
[1748748762840,29.41930403,153.9,153.85,25.44083983]
[1748748763039,8.0406,153.9,153.86,14.88083983]
[1748748763434,29.4192944,153.9,153.85,25.44083983]
[1748748763839,14.53845457,153.9,153.85,25.44083983]
[1748748764040,29.4192944,153.9,153.85,25.44083983]
[1748748764267,29.4192944,153.9,153.85,31.94060452]
[1748748765970,22.92143983,153.9,153.85,31.94060452]
[1748748768759,29.41922093,153.9,153.85,31.94060452]
[1748748770356,22.92143983,153.9,153.85,31.94060452]
[1748748770555,1.6357,153.9,153.87,14.88083983]
[1748748771577,1.6357,153.9,153.87,21.37969537]
[1748748772778,1.6357,153.9,153.87,6.49885554]
[1748748772944,1.6357,153.9,153.87,21.37969537]
[1748748775482,26.0,153.93,153.87,21.37969537]
[1748748775483,14.88083983,153.93,153.89,14.88083983]
[1748748775667,22.68623983,153.94,153.89,14.88083983]
[1748748776068,14.88083983,154.0,153.93,14.88083983]
[1748748776288,16.23229796,154.02,153.95,14.88083983]
[1748748776583,16.48163983,153.98,153.93,21.37706896]
[1748748776782,14.88083983,153.97,153.93,6.49622913]
[1748748777187,23.00663983,153.98,153.93,21.37706896]
[1748748778167,14.88083983,153.97,153.92,14.88083983]
[1748748778486,14.88083983,153.94,153.87,36.54]
[1748748778672,1.6008,153.92,153.88,14.88083983]
[1748748779394,1.6008,153.92,153.89,14.88083983]
[1748748779765,1.6008,153.92,153.89,21.37881151]
[1748748780469,1.6008,153.92,153.91,14.88083983]
[1748748780668,16.49643983,153.96,153.91,14.88083983]
[1748748781090,1.6156,153.96,153.92,14.88083983]
[1748748782695,1.6156,153.96,153.92,21.37730118]
[1748748784004,1.6156,153.96,153.93,14.88083983]
[1748748784170,1.6156,153.96,153.92,6.49646135]
[1748748784372,1.6156,153.96,153.95,14.88083983]
[1748748784795,1.6156,153.96,153.95,21.37645528]
[1748748785090,1.6156,153.99,153.95,21.37645528]
[1748748785309,14.88083983,154.01,153.96,14.88083983]
[1748748786293,14.88083983,154.01,153.97,14.88083983]
[1748748786671,14.88083983,154.04,153.99,14.88083983]
[1748748787574,14.88083983,154.03,153.98,21.37505028]
[1748748787798,14.88083983,154.02,153.98,21.37505028]
[1748748787997,14.88083983,154.02,153.98,14.88083983]
[1748748788180,14.88083983,154.02,153.97,21.37547728]